bitfinex/quotes_SOLUSD_20220307
["timestamp","ask_amount","ask_price","bid_price","bid_amount"]
[1646678307531,192.44,82.414,82.331,40.8092701]
[1646678307734,192.44,82.412,82.331,40.8092701]
[1646678307935,192.44,82.41,82.331,40.8092701]
[1646678308132,120.3,82.408,82.331,40.8092701]
[1646678308332,120.3,82.406,82.331,40.8092701]
[1646678308532,120.3,82.404,82.332,0.25]
[1646678308735,120.3,82.402,82.332,0.25]
[1646678309032,120.3,82.4,82.332,0.25]
[1646678309233,6.0,82.399,82.332,0.25]
[1646678309433,0.25,82.403,82.332,0.25]
[1646678309633,0.25,82.403,82.333,27.74857834]
[1646678309831,6.07,82.425,82.334,6.25]
[1646678309832,0.25,82.415,82.334,6.25]
[1646678310031,6.07,82.425,82.334,6.25]
[1646678310236,14.43,82.45,82.334,6.25]
[1646678310237,120.3,82.446,82.34,18.2149]
[1646678310433,120.3,82.446,82.35,14.43]
[1646678310635,6.0,82.445,82.352,34.42347559]
[1646678310839,6.0,82.448,82.353,6.25]
[1646678311251,6.0,82.448,82.353,9.08613526]
[1646678311442,6.067,82.447,82.371,36.2480296]
[1646678311642,53.4989,82.468,82.372,6.25]
[1646678311841,6.067,82.468,82.373,120.3]
[1646678312040,47.4319,82.486,82.375,120.3]
[1646678312239,6.0,82.485,82.391,120.3]
[1646678312439,24.7114,82.499,82.42,18.189]
[1646678312640,72.14,82.51,82.422,34.52564411]
[1646678312839,12.063,82.509,82.423,6.25]
[1646678313040,6.0,82.509,82.423,6.25]
[1646678313248,47.4319,82.512,82.423,6.25]
[1646678313441,6.062,82.511,82.44,18.1917]
[1646678313744,6.062,82.511,82.441,35.2618689]
[1646678313940,52.239,82.558,82.441,35.2618689]
[1646678314141,6.0,82.557,82.441,35.2618689]
[1646678314340,72.14,82.555,82.441,35.2618689]
[1646678314541,72.14,82.539,82.46,18.1865]
[1646678314741,192.44,82.53,82.461,36.74178856]
[1646678314942,120.3,82.528,82.461,36.74178856]
[1646678315241,120.3,82.526,82.461,36.74178856]
[1646678315442,120.3,82.524,82.461,36.74178856]
[1646678316042,0.25,82.523,82.461,36.74178856]
[1646678316247,0.25,82.523,82.47,18.1868]
[1646678316844,0.25,82.528,82.47,18.1868]
[1646678317044,120.3,82.527,82.47,18.1868]
[1646678317244,120.3,82.525,82.47,18.1868]
[1646678317445,120.3,82.523,82.47,18.1868]
[1646678317646,6.0,82.522,82.471,0.25]
[1646678317850,120.3,82.548,82.48,18.1849]
[1646678318046,6.0,82.556,82.481,48.51090153]
[1646678318246,6.0,82.557,82.481,48.51090153]
[1646678318853,120.3,82.555,82.481,48.51090153]
[1646678319048,6.0,82.557,82.481,48.51090153]
[1646678319049,120.3,82.539,82.481,48.26090153]
[1646678319249,120.3,82.537,82.45,14.43]
[1646678319447,120.3,82.535,82.451,0.25]
[1646678319648,0.4826121,82.532,82.451,0.25]
[1646678319848,120.3,82.531,82.451,0.25]
[1646678320049,6.7326121,82.532,82.451,0.25]
[1646678320050,120.3,82.529,82.451,0.25]
[1646678320248,120.3,82.527,82.451,36.42306771]
[1646678320449,6.25,82.526,82.451,36.42306771]
[1646678320658,6.25,82.528,82.451,36.42306771]
[1646678321049,0.25,82.528,82.451,36.42306771]
[1646678321250,0.25,82.528,82.46,18.1894]
[1646678321454,0.25,82.528,82.451,36.42306771]
[1646678321455,5.75,82.536,82.461,0.25]
[1646678321654,126.3,82.538,82.451,36.42306771]
[1646678321849,126.22177821,82.538,82.451,36.42306771]
[1646678322251,5.92177821,82.538,82.47,18.1863]
[1646678322552,24.0829,82.539,82.471,41.29538709]
[1646678323554,24.7114,82.56,82.471,41.29538709]
[1646678323755,6.0,82.557,82.491,41.16744595]
[1646678323959,24.7114,82.56,82.492,0.25]
[1646678324753,6.058,82.557,82.5,18.181]
[1646678324953,120.3,82.556,82.501,0.25]
[1646678325153,0.25,82.555,82.501,0.25]
[1646678325354,120.3,82.554,82.501,0.25]
[1646678325554,120.3,82.552,82.451,25.16893122]
[1646678325755,120.3,82.54,82.46,14.43]
[1646678325954,0.47497273,82.538,82.46,14.43]
[1646678326155,6.0,82.539,82.46,14.43]
[1646678326354,0.47497273,82.538,82.46,14.43]
[1646678326556,0.47497273,82.538,82.461,35.72362463]
[1646678326755,0.47497273,82.538,82.462,0.25]
[1646678326956,120.3,82.556,82.47,18.1873]
[1646678327155,6.25,82.555,82.471,0.25]
[1646678327356,6.0,82.554,82.471,0.25]
[1646678327556,0.25,82.553,82.471,3.08613526]
[1646678327755,0.25,82.555,82.472,2.83613526]
[1646678327956,0.25,82.555,82.473,0.25]
[1646678328160,0.25,82.555,82.49,18.1771]
[1646678328356,0.25,82.555,82.48,60.5902]
[1646678328357,6.058,82.59,82.491,43.12626383]
[1646678328557,26.33937126,82.621,82.491,43.12626383]
[1646678328558,6.057,82.588,82.5,14.43]
[1646678328757,6.057,82.598,82.501,6.25]
[1646678328956,6.057,82.598,82.501,9.08613526]
[1646678329160,48.0602,82.599,82.51,18.1728]
[1646678329376,48.0602,82.599,82.52,14.43]
[1646678329555,6.056,82.598,82.521,0.25]
[1646678329755,6.0,82.597,82.521,3.08613526]
[1646678329957,6.056,82.596,82.521,3.08613526]
[1646678330158,6.056,82.598,82.521,3.08613526]
[1646678330356,0.25,82.597,82.531,45.6623679]
[1646678330557,0.25,82.598,82.532,0.25]
[1646678331356,6.25,82.598,82.532,0.25]
[1646678331759,6.25,82.598,82.532,6.25]
[1646678331961,0.25,82.598,82.532,6.25]
[1646678332159,48.0602,82.599,82.55,18.1698]
[1646678332461,6.055,82.612,82.551,48.84055492]
[1646678332658,6.055,82.612,82.551,51.67669018]
[1646678332859,24.7881,82.613,82.552,2.83613526]
[1646678333060,24.7881,82.613,82.553,0.25]
[1646678333260,6.0,82.612,82.553,0.25]
[1646678333460,6.054,82.625,82.554,2.83613526]
[1646678333660,47.1069,82.626,82.555,0.25]
[1646678333959,47.1069,82.626,82.556,2.83613526]
[1646678334160,47.1069,82.626,82.56,18.1615]
[1646678334362,47.1069,82.626,82.561,0.25]
[1646678334761,0.25,82.625,82.561,3.08613526]
[1646678334961,6.053,82.624,82.561,0.25]
[1646678335163,6.25,82.623,82.561,0.25]
[1646678335364,6.053,82.622,82.561,0.25]
[1646678335563,6.25,82.621,82.552,0.25]
[1646678335763,6.054,82.62,82.552,0.25]
[1646678335963,6.25,82.619,82.552,3.08613526]
[1646678336363,6.25,82.619,82.571,34.63533616]
[1646678336564,0.25,82.619,82.571,34.63533616]
[1646678337189,0.25,82.621,82.571,34.63533616]
[1646678337889,6.303,82.623,82.571,34.63533616]
[1646678338090,6.0,82.622,82.58,18.1642]
[1646678338289,0.25,82.621,82.58,18.1642]
[1646678338491,6.0,82.622,82.581,0.25]
[1646678338690,6.0,82.625,82.581,0.25]
[1646678339193,47.1069,82.626,82.59,18.1619]
[1646678339394,47.1069,82.626,82.581,0.25]
[1646678339395,6.051,82.659,82.591,48.7473141]
[1646678339594,6.0,82.658,82.591,48.4973141]
[1646678339791,6.051,82.657,82.592,0.25]
[1646678339992,6.0,82.656,82.592,0.25]
[1646678340194,6.0,82.658,82.592,0.25]
[1646678340497,0.25,82.657,82.6,18.1602]
[1646678340692,0.25,82.657,82.601,0.25]
[1646678340892,0.25,82.658,82.601,0.25]
[1646678341090,6.0,82.659,82.601,0.25]
[1646678341692,6.051,82.658,82.601,0.25]
[1646678341893,6.0,82.657,82.592,0.25]
[1646678342094,6.0,82.659,82.61,18.1579]
[1646678342293,6.0,82.659,82.611,0.25]
[1646678342492,6.0,82.659,82.58,14.43]
[1646678342693,6.0,82.659,82.581,0.25]
[1646678342892,0.40537366,82.658,82.581,0.25]
[1646678343093,0.65537366,82.658,82.581,0.25]
[1646678343293,0.65537366,82.658,82.57,74.9671]
[1646678343494,192.44,82.656,82.588,44.11104827]
[1646678343694,192.44,82.654,82.554,2.83613526]
[1646678343893,192.44,82.652,82.555,6.0]
[1646678344094,0.84602899,82.649,82.555,6.0]
[1646678344299,0.84602899,82.647,82.556,2.83613526]
[1646678344495,0.84602899,82.645,82.556,2.83613526]
[1646678344697,0.84602899,82.643,82.557,46.50718455]
[1646678344895,1.09602899,82.643,82.56,32.5972]
[1646678345096,0.25,82.643,82.561,6.0]
[1646678345298,0.25,82.643,82.57,60.5255]
[1646678345495,0.25,82.643,82.571,35.72732387]
[1646678345896,0.25,82.643,82.58,18.1577]
[1646678346096,1.59157126,82.674,82.582,95.0]
[1646678346298,45.67,82.696,82.591,95.0]
[1646678346497,45.67,82.696,82.6,14.43]
[1646678346700,100.0,82.697,82.601,0.25]
[1646678347000,1.56545519,82.724,82.622,120.3]
[1646678347204,45.67,82.763,82.64,180.7543]
[1646678347205,1.56545519,82.737,82.64,180.7543]
[1646678347398,1.56545519,82.758,82.65,14.43]
[1646678347599,1.56545519,82.758,82.651,6.25]
[1646678347799,1.56545519,82.759,82.68,18.139]
[1646678348097,34.93161354,82.758,82.681,43.54424392]
[1646678348398,6.043,82.757,82.681,43.54424392]
[1646678349098,6.043,82.762,82.7,18.1347]
[1646678349297,6.0,82.761,82.701,0.25]
[1646678349501,6.293,82.76,82.701,0.25]
[1646678349700,6.0,82.759,82.652,2.83613526]
[1646678349902,1.56545519,82.754,82.64,14.43]
[1646678350099,192.44,82.752,82.64,14.43]
[1646678350298,18.1507,82.74,82.64,14.43]
[1646678350500,13.02176445,82.739,82.64,14.43]
[1646678350700,39.82185181,82.738,82.641,35.27930695]
[1646678350900,13.02176445,82.737,82.641,35.27930695]
[1646678351099,45.9401,82.736,82.642,0.25]
[1646678351301,13.02176445,82.735,82.642,0.25]
[1646678351702,6.97576445,82.735,82.66,18.1458]
[1646678351999,126.55,82.735,82.661,39.87655869]
[1646678352199,120.3,82.733,82.661,39.87655869]
[1646678352408,120.81968387,82.731,82.634,2.83613526]
[1646678352600,6.25,82.732,82.63,14.43]
[1646678352601,0.70180789,82.728,82.635,0.25]
[1646678352801,18.152,82.71,82.64,18.1506]
[1646678353005,0.70180789,82.708,82.641,0.25]
[1646678353202,0.70180789,82.708,82.635,0.25]
[1646678353203,6.70180789,82.708,82.635,0.25]
[1646678353405,0.25,82.707,82.631,43.85713081]
[1646678354003,0.25,82.707,82.632,2.83613526]
[1646678354305,22.5014,82.724,82.65,18.1485]
[1646678354504,1.56545519,82.733,82.65,32.5785]
[1646678354703,1.56545519,82.733,82.651,57.41942255]
[1646678354906,23.0424,82.736,82.651,57.62446109]
[1646678355104,23.0424,82.736,82.67,18.1316]
[1646678355307,23.0424,82.736,82.671,47.42809993]
[1646678355507,23.0424,82.736,82.671,50.26423519]
[1646678355708,22.5014,82.755,82.672,2.83613526]
[1646678355911,6.25,82.754,82.673,6.25]
[1646678356107,6.25,82.754,82.673,6.66007708]
[1646678356306,6.0,82.754,82.69,18.1363]
[1646678356506,6.0,82.754,82.691,48.48989036]
[1646678356708,6.0,82.754,82.691,51.32602562]
[1646678357006,6.0,82.754,82.692,2.83613526]
[1646678357205,6.0,82.754,82.7,18.1308]
[1646678357414,6.0,82.754,82.701,0.25]
[1646678357808,0.25,82.753,82.701,0.25]
[1646678358009,0.25,82.753,82.7,18.1308]
[1646678358209,0.25,82.753,82.691,48.23989036]
[1646678358609,0.42648717,82.752,82.691,48.23989036]
[1646678359209,6.42648717,82.752,82.691,48.23989036]
[1646678359410,0.25,82.751,82.691,48.23989036]
[1646678360014,0.25,82.751,82.7,18.1383]
[1646678360614,6.0,82.754,82.7,18.1383]
[1646678360819,1.56545519,82.78,82.701,2.83613526]
[1646678361013,6.0,82.779,82.72,18.1281]
[1646678361212,6.0,82.783,82.721,41.54711977]
[1646678361416,6.0,82.784,82.701,2.83613526]
[1646678361611,6.0,82.784,82.662,120.3]
[1646678361612,1.56545519,82.782,82.7,14.43]
[1646678361916,1.56545519,82.774,82.69,14.43]
[1646678362110,72.14,82.772,82.69,18.1404]
[1646678362312,192.44,82.77,82.691,37.11576452]
[1646678362517,192.44,82.768,82.691,37.11576452]
[1646678362714,62.23348574,82.767,82.691,37.11576452]
[1646678362916,0.25,82.766,82.692,2.83613526]
[1646678363116,0.25,82.766,82.7,18.138]
[1646678363814,120.3,82.765,82.701,0.25]
[1646678364015,0.25,82.764,82.701,0.25]
[1646678364215,126.55,82.764,82.7,18.138]
[1646678364416,120.3,82.759,82.7,18.138]
[1646678364616,0.4406378,82.756,82.671,2.83613526]
[1646678364816,192.44,82.754,82.671,2.83613526]
[1646678365118,0.78192116,82.751,82.62,14.43]
[1646678365316,18.1563,82.7,82.61,32.5873]
[1646678365517,192.44,82.724,82.611,37.41396371]
[1646678365715,0.78192116,82.722,82.611,37.41396371]
[1646678365915,0.78192116,82.72,82.612,2.83613526]
[1646678366116,0.78192116,82.718,82.613,6.0]
[1646678366317,6.048,82.717,82.64,18.1451]
[1646678366517,72.14,82.715,82.641,38.57166721]
[1646678366716,120.3,82.708,82.641,38.57166721]
[1646678366915,120.3,82.696,82.641,38.57166721]
[1646678367116,0.78192116,82.693,82.614,2.83613526]
[1646678367416,192.44,82.692,82.614,2.83613526]
[1646678367622,192.44,82.69,82.614,2.83613526]
[1646678367816,192.44,82.688,82.601,2.83613526]
[1646678368017,192.44,82.686,82.602,43.58981582]
[1646678368227,120.3,82.678,82.602,37.58981582]
[1646678368419,22.4514578,82.677,82.602,40.42595108]
[1646678368618,72.14,82.676,82.61,18.1582]
[1646678368817,72.14,82.674,82.611,0.25]
[1646678369118,72.14,82.672,82.602,40.42595108]
[1646678369321,72.14,82.67,82.602,37.58981582]
[1646678369518,219.72414832,82.659,82.602,37.58981582]
[1646678369717,120.3,82.657,82.602,37.58981582]
[1646678369918,120.3,82.655,82.602,37.58981582]
[1646678370120,120.3,82.653,82.602,37.58981582]
[1646678370319,120.3,82.651,82.602,37.58981582]
[1646678370518,12.301,82.65,82.602,37.58981582]
[1646678371117,6.25,82.65,82.602,37.58981582]
[1646678371517,0.25,82.65,82.602,37.58981582]
[1646678371720,72.14,82.655,82.582,95.0]
[1646678371918,72.14,82.649,82.582,95.0]
[1646678372118,120.3,82.638,82.582,95.0]
[1646678372318,120.3,82.636,82.582,95.0]
[1646678372518,120.3,82.634,82.582,95.0]
[1646678372721,6.25,82.633,82.583,34.27413]
[1646678373723,6.0,82.632,82.583,34.27413]
[1646678373923,0.25,82.631,82.583,34.27413]
[1646678374123,0.25,82.633,82.583,34.27413]
[1646678374324,6.051,82.632,82.583,34.27413]
[1646678374524,6.25,82.631,82.583,34.27413]
[1646678374724,6.25,82.63,82.583,34.27413]
[1646678374926,6.0,82.63,82.583,34.27413]
[1646678375125,0.25,82.629,82.561,2.83613526]
[1646678375336,120.93138905,82.627,82.551,2.83613526]
[1646678375727,72.14,82.618,82.475,31.62991704]
[1646678375928,120.3,82.609,82.475,31.62991704]
[1646678376127,0.76318407,82.606,82.484,2.83613526]
[1646678376333,120.3,82.599,82.5,18.179]
[1646678376530,120.3,82.597,82.501,49.78410683]
[1646678376827,192.44,82.595,82.501,49.78410683]
[1646678377028,120.3,82.593,82.501,43.78410683]
[1646678377228,6.25,82.592,82.502,0.25]
[1646678377428,6.25,82.592,82.502,24.26289362]
[1646678377629,6.057,82.591,82.51,18.1759]
[1646678377831,6.0,82.59,82.511,0.25]
[1646678378030,49.044,82.597,82.511,0.45503854]
[1646678378251,49.044,82.597,82.512,23.80785508]
[1646678378451,49.044,82.597,82.513,6.25]
[1646678378648,6.056,82.637,82.513,6.45503854]
[1646678378852,100.0,82.638,82.514,60.29053755]
[1646678378853,33.64831775,82.626,82.514,60.29053755]
[1646678379049,33.64831775,82.626,82.53,18.1696]
[1646678379249,6.054,82.625,82.531,36.48238519]
[1646678379448,6.25,82.624,82.531,36.48238519]
[1646678379653,6.054,82.623,82.531,36.48238519]
[1646678379849,6.25,82.622,82.531,36.48238519]
[1646678380049,6.054,82.621,82.531,36.48238519]
[1646678380252,6.25,82.62,82.531,36.48238519]
[1646678380652,6.25,82.62,82.532,3.24621234]
[1646678380852,6.0,82.619,82.533,0.25]
[1646678381151,0.25,82.618,82.533,9.08613526]
[1646678381351,6.0,82.625,82.54,18.1699]
[1646678381553,6.054,82.649,82.541,6.25]
[1646678381751,6.054,82.649,82.541,33.30406742]
[1646678381952,6.053,82.658,82.542,27.05406742]
[1646678382152,6.053,82.658,82.543,6.25]
[1646678382355,6.053,82.649,82.544,120.3]
[1646678382554,100.0,82.685,82.56,18.1578]
[1646678382754,100.0,82.685,82.57,14.43]
[1646678382755,52.5714,82.684,82.57,14.43]
[1646678382956,52.5714,82.684,82.561,106.25]
[1646678382957,6.0,82.683,82.58,14.43]
[1646678383156,120.3,82.681,82.581,6.25]
[1646678383355,36.00555756,82.682,82.581,6.25]
[1646678383356,120.3,82.679,82.581,6.25]
[1646678383554,120.3,82.671,82.581,0.25]
[1646678383754,120.3,82.669,82.581,0.25]
[1646678383957,120.3,82.667,82.581,0.25]
[1646678384155,132.601,82.666,82.573,0.25]
[1646678384356,132.601,82.666,82.572,45.54984995]
[1646678384557,192.44,82.662,82.572,45.54984995]
[1646678384756,120.3,82.66,82.572,45.54984995]
[1646678384957,120.3,82.65,82.528,100.0]
[1646678385159,120.3,82.63,82.49,14.43]
[1646678385360,120.3,82.612,82.481,120.3]
[1646678385561,120.3,82.598,82.486,100.0]
[1646678385758,120.3,82.596,82.493,120.3]
[1646678385959,6.0,82.595,82.501,120.3]
[1646678386158,24.8495,82.597,82.511,120.3]
[1646678386358,24.8495,82.597,82.512,6.25]
[1646678386560,24.8495,82.597,82.512,32.59504311]
[1646678386757,24.8495,82.597,82.513,0.20503854]
[1646678386958,24.8495,82.597,82.513,65.13528599]
[1646678387158,24.8495,82.597,82.514,32.39000457]
[1646678387558,24.8495,82.597,82.515,26.14000457]
[1646678387759,24.8495,82.597,82.52,14.43]
[1646678387959,24.8495,82.597,82.521,0.25]
[1646678388164,24.8495,82.597,82.541,36.81149599]
[1646678388360,24.8495,82.597,82.542,0.25]
[1646678388861,0.25,82.596,82.542,0.25]
[1646678389261,0.25,82.596,82.55,18.1695]
[1646678389464,6.055,82.61,82.551,0.25]
[1646678389662,6.25,82.609,82.551,0.25]
[1646678389863,0.25,82.609,82.551,0.25]
[1646678390265,0.25,82.609,82.56,18.1669]
[1646678390464,0.25,82.609,82.561,42.31705033]
[1646678390670,78.39,82.609,82.561,42.31705033]
[1646678390864,6.25,82.609,82.561,42.31705033]
[1646678391066,0.25,82.609,82.561,42.31705033]
[1646678392768,192.69,82.609,82.524,6.054]
[1646678392968,192.44,82.599,82.51,75.0091]
[1646678393169,72.14,82.597,82.51,60.5791]
[1646678393370,72.14,82.595,82.51,60.5791]
[1646678393568,72.14,82.589,82.51,60.5791]
[1646678393767,6.25,82.588,82.511,41.93591857]
[1646678394170,6.0,82.587,82.53,18.1738]
[1646678394370,0.25,82.586,82.53,18.1738]
[1646678394970,0.25,82.586,82.531,36.04562309]
[1646678395368,0.25,82.586,82.54,18.1732]
[1646678395569,120.55,82.597,82.541,0.25]
[1646678395772,6.0,82.596,82.541,0.25]
[1646678396069,0.25,82.595,82.541,0.25]
[1646678396672,192.44,82.589,82.541,0.25]
[1646678396894,120.3,82.587,82.541,0.25]
[1646678397074,120.3,82.585,82.541,0.25]
[1646678397275,6.25,82.586,82.531,36.04562309]
[1646678397276,72.14,82.58,82.531,36.04562309]
[1646678397475,198.69,82.579,82.494,6.056]
[1646678397675,198.44,82.579,82.494,6.056]
[1646678397874,0.25,82.578,82.493,6.057]
[1646678398277,120.3,82.565,82.5,18.1817]
[1646678398474,25.2064,82.578,82.501,47.1042271]
[1646678398475,192.44,82.559,82.501,47.1042271]
[1646678398675,6.0,82.558,82.501,47.1042271]
[1646678399075,0.25,82.557,82.501,47.1042271]
[1646678399476,0.25,82.557,82.51,18.1803]
[1646678400280,0.25,82.571,82.51,18.1803]
[1646678400479,6.057,82.575,82.51,18.1803]
[1646678400678,24.288,82.576,82.51,18.1803]
[1646678400881,24.288,82.576,82.511,6.057]
[1646678401078,24.288,82.576,82.53,18.1698]
[1646678401278,24.288,82.576,82.531,0.25]
[1646678401481,120.3,82.575,82.531,37.33515315]
[1646678401879,6.25,82.574,82.531,37.33515315]
[1646678402282,6.25,82.574,82.489,6.056]
[1646678402283,6.0,82.573,82.489,6.056]
[1646678402482,0.25,82.574,82.48,75.0354]
[1646678402483,120.3,82.562,82.48,75.0354]
[1646678402680,192.44,82.555,82.47,43.46467123]
[1646678402880,6.059,82.571,82.47,43.46467123]
[1646678402881,29.0588,82.554,82.481,29.03467123]
[1646678403189,0.25,82.553,82.49,18.1847]
[1646678403581,0.25,82.553,82.491,29.03467123]
[1646678403780,0.25,82.553,82.492,6.308]
[1646678404182,0.25,82.553,82.493,29.03467123]
[1646678404407,0.25,82.553,82.5,18.1773]
[1646678404608,0.25,82.553,82.501,42.04668603]
[1646678404810,0.25,82.553,82.502,6.0]
[1646678405008,0.25,82.553,82.501,42.04668603]
[1646678407313,120.55,82.553,82.501,42.04668603]
[1646678407516,192.44,82.549,82.501,42.04668603]
[1646678407713,120.3,82.547,82.501,42.04668603]
[1646678407912,6.25,82.546,82.501,42.04668603]
[1646678408113,6.25,82.548,82.501,42.04668603]
[1646678408315,23.0588,82.554,82.501,42.04668603]
[1646678408616,23.0588,82.554,82.51,18.1807]
[1646678408814,23.0588,82.554,82.511,0.25]
[1646678410314,23.0588,82.554,82.52,18.1758]
[1646678410515,120.3,82.572,82.521,47.66408853]
[1646678410716,6.25,82.571,82.521,47.66408853]
[1646678410915,24.9564,82.578,82.521,47.66408853]
[1646678411319,24.9564,82.578,82.53,18.1766]
[1646678411518,29.3567,82.617,82.531,0.25]
[1646678411719,53.5013,82.617,82.53,29.03467123]
[1646678411917,47.4453,82.617,82.54,60.5454]
[1646678412117,47.4453,82.617,82.542,120.3]
[1646678412317,47.4453,82.617,82.55,18.1637]
[1646678412518,47.4453,82.617,82.551,12.304]
[1646678412919,120.3,82.656,82.56,60.5394]
[1646678413118,6.0,82.655,82.561,6.301]
[1646678413319,6.0,82.655,82.57,18.1618]
[1646678413520,6.0,82.655,82.571,43.64251135]
[1646678414220,0.25,82.654,82.571,43.64251135]
[1646678414420,6.051,82.653,82.571,43.64251135]
[1646678414619,72.14,82.669,82.59,18.1605]
[1646678414620,6.051,82.663,82.59,18.1605]
[1646678414826,6.051,82.677,82.591,0.25]
[1646678415224,1.56545519,82.688,82.591,0.25]
[1646678415426,1.56545519,82.694,82.592,149.33467123]
[1646678415621,1.56545519,82.699,82.61,18.1534]
[1646678415823,1.56545519,82.701,82.611,0.25]
[1646678416024,1.56545519,82.703,82.611,0.25]
[1646678416222,1.56545519,82.704,82.612,2.83613526]
[1646678416525,1.56545519,82.704,82.613,35.64776513]
[1646678416722,1.56545519,82.71,82.614,6.0]
[1646678416922,1.56545519,82.702,82.615,0.25]
[1646678417123,192.44,82.698,82.613,35.64776513]
[1646678417323,192.44,82.696,82.613,35.64776513]
[1646678417523,192.44,82.694,82.613,35.39776513]
[1646678417722,1.56545519,82.689,82.62,18.1569]
[1646678417922,192.44,82.685,82.62,18.1569]
[1646678418121,192.44,82.683,82.62,18.1569]
[1646678418322,44.68936057,82.686,82.62,18.1569]
[1646678418323,192.44,82.679,82.62,18.1569]
[1646678418524,120.3,82.677,82.62,18.1569]
[1646678418729,126.55,82.676,82.62,18.1569]
[1646678419422,6.25,82.676,82.62,18.1569]
[1646678419623,0.25,82.676,82.63,18.1501]
[1646678419824,6.25,82.695,82.631,0.25]
[1646678420022,0.25,82.695,82.631,0.25]
[1646678420624,0.40042251,82.694,82.631,0.25]
[1646678420823,0.40042251,82.694,82.615,0.25]
[1646678421027,6.25,82.695,82.631,43.8527817]
[1646678421223,6.25,82.695,82.632,0.25]
[1646678421825,6.0,82.695,82.632,0.25]
[1646678422027,1.56545519,82.724,82.65,18.15]
[1646678422226,72.14,82.734,82.651,0.25]
[1646678422426,72.14,82.732,82.651,37.30699273]
[1646678422826,192.44,82.729,82.652,2.83613526]
[1646678423026,36.03375785,82.733,82.653,0.25]
[1646678423027,192.44,82.727,82.653,0.25]
[1646678423226,192.44,82.725,82.651,34.47085747]
[1646678423428,0.44438574,82.722,82.651,34.47085747]
[1646678423627,192.44,82.719,82.651,34.47085747]
[1646678423926,0.54153419,82.716,82.651,34.47085747]
[1646678424128,0.54153419,82.714,82.651,34.22085747]
[1646678424328,0.54153419,82.712,82.651,34.22085747]
[1646678424529,0.54153419,82.71,82.651,34.22085747]
[1646678424727,0.54153419,82.708,82.651,34.22085747]
[1646678425025,163.04298859,82.706,82.651,34.22085747]
[1646678425227,6.25,82.705,82.651,34.22085747]
[1646678426231,6.0,82.704,82.651,34.22085747]
[1646678426432,0.25,82.703,82.651,34.22085747]
[1646678426634,0.25,82.705,82.651,34.22085747]
[1646678426832,0.25,82.705,82.66,18.1472]
[1646678427031,0.25,82.705,82.651,34.22085747]
[1646678427433,34.73818824,82.703,82.651,34.22085747]
[1646678427633,6.25,82.702,82.651,34.22085747]
[1646678428035,120.3,82.701,82.633,2.83613526]
[1646678428237,192.44,82.699,82.622,2.83613526]
[1646678428439,0.69495616,82.696,82.622,2.83613526]
[1646678428637,0.69495616,82.694,82.622,2.83613526]
[1646678428838,0.69495616,82.691,82.622,2.83613526]
[1646678429036,120.3,82.688,82.623,36.25571858]
[1646678429239,37.56590335,82.689,82.623,36.25571858]